fUST/lending_fUST_20250127
["ID","MTS","AMOUNT","RATE_DAILY","PERIOD"]
[350554104,1737960640242,-579.34,0.00020739,2]
[350554106,1737960640251,-1012.36,0.00020739,2]
[350554108,1737960640261,-4996.77,0.0002074,2]
[350554110,1737960640270,-1633.9,0.0002074,2]
[350554112,1737960640280,-500.0,0.00020838,2]
[350554114,1737960640290,-1071.49,0.00020876,2]
[350554116,1737960640299,-500.0,0.00020876,2]
[350554118,1737960640309,-579.34,0.00020876,2]
[350554120,1737960640318,-1012.36,0.00020876,2]
[350554122,1737960640328,-4996.77,0.00020877,2]
[350554124,1737960640337,-1633.9,0.00020877,2]
[350554126,1737960640347,-193.20457881,0.00020975,2]
[350554128,1737960640356,-151.0,0.00020979,2]
[350554130,1737960640366,-77922.37282752,0.00021,2]
[350554132,1737960640377,-1000.0,0.00021,21]
[350554134,1737960640387,-1071.49,0.00021013,2]
[350554136,1737960640396,-500.0,0.00021013,2]
[350554138,1737960640406,-579.34,0.00021013,2]
[350554140,1737960640415,-1012.36,0.00021013,2]
[350554142,1737960640424,-4996.77,0.00021014,2]
[350554144,1737960640433,-1633.9,0.00021014,2]
[350554146,1737960640443,-1071.49,0.0002115,2]
[350554148,1737960640452,-500.0,0.0002115,2]
[350554150,1737960640461,-579.34,0.0002115,2]
[350554152,1737960640471,-1012.36,0.0002115,2]
[350554153,1737960640480,-4996.77,0.00021151,2]
[350554155,1737960640489,-1633.9,0.00021151,2]
[350554157,1737960640499,-1071.49,0.00021287,2]
[350554159,1737960640508,-500.0,0.00021287,2]
[350554161,1737960640517,-579.34,0.00021287,2]
[350554163,1737960640527,-1012.36,0.00021287,2]
[350554165,1737960640536,-1550.1309328,0.00021288,2]
[350554168,1737960640550,-3446.6390672,0.00021288,2]
[350554170,1737960640559,-1633.9,0.00021288,2]
[350554172,1737960640568,-304.34144453,0.00021369,2]
[350554174,1737960640578,-300.0,0.000214,9]
[350554176,1737960640587,-353.464,0.000214,2]
[350554178,1737960640597,-1071.49,0.00021424,2]
[350554180,1737960640607,-369.72179781,0.00021424,2]
[350554182,1737960640616,-579.34,0.00021424,2]
[350554184,1737960640627,-1012.36,0.00021424,2]
[350554186,1737960640636,-4996.77,0.00021425,2]
[350554188,1737960640645,-1633.9,0.00021425,2]
[350554190,1737960640654,-170.83409048,0.00021512,2]
[350554191,1737960640663,-1071.70709247,0.00021561,2]
[350554194,1737960640674,-579.51,0.00021561,2]
[350554196,1737960640684,-1012.42194615,0.00021561,2]
[350554198,1737960640693,-1330.08578328,0.00021561,2]
[350554200,1737960640705,-1988.0,0.00021561,2]
[350554203,1737960640716,-909.55058816,0.00021561,2]
[350554206,1737960640726,-4996.98079429,0.00021562,2]
[350554208,1737960640736,-1633.92,0.00021562,2]
[350554210,1737960640746,-249.0,0.00021595,2]
[350554212,1737960640756,-151.0,0.00021662,2]
[350554214,1737960640765,-8552.13754409,0.00021749,2]
[350554216,1737960640775,-587.0,0.00021899,2]
[350554218,1737960640784,-500.0,0.00021917,2]
[350554220,1737960640794,-500.0,0.00021917,2]
[350554222,1737960640803,-500.0,0.00021917,2]
[350554224,1737960640812,-504.10978071,0.00021917,2]
[350554226,1737960640821,-153.0,0.00021934,2]
[350554228,1737960640831,-153.0,0.00021934,2]
[350554230,1737960640841,-153.0,0.00021934,2]
[350554232,1737960640850,-153.0,0.00021934,2]
[350554234,1737960640859,-153.0,0.00021934,2]
[350554236,1737960640868,-248.07,0.00021934,2]
[350554238,1737960640879,-1000.0,0.00022,22]
[350554240,1737960640889,-150.802,0.00022026,2]
[350554242,1737960640898,-542.493,0.00022026,2]
[350554244,1737960640908,-2048.0,0.00022026,2]
[350554246,1737960640917,-2304.0,0.00022026,2]
[350554248,1737960640927,-153.0,0.00022026,2]
[350554250,1737960640937,-395.0,0.00022026,2]
[350554252,1737960640947,-187.292,0.00022026,2]
[350554254,1737960640956,-151.0,0.00022074,7]
[350554256,1737960640966,-418.09024108,0.00022108,7]
[350554258,1737960640976,-151.0,0.000222,8]
[350554260,1737960640986,-705.21955015,0.00022223,2]
[350554575,1737960643537,-2400.0,0.00019342,2]
[350554577,1737960643547,-500.0,0.00019505,2]
[350554579,1737960643556,-500.0,0.00019642,2]
[350554581,1737960643566,-500.0,0.00019779,2]
[350554583,1737960643575,-500.0,0.00019916,2]
[350554585,1737960643585,-500.0,0.00020053,2]
[350554587,1737960643595,-49.45,0.00022223,2]
[350554599,1737960643697,-500.0,0.0001841,2]
[350554601,1737960643706,-493.79287754,0.0001841,2]
[350554604,1737960643718,-127.56712246,0.0001841,2]
[350554605,1737960643727,-500.0,0.0002019,2]
[350554608,1737960643736,-500.0,0.00020327,2]
[350554610,1737960643745,-500.0,0.00020464,2]
[350554611,1737960643754,-183.61441688,0.00020601,2]
[350554613,1737960643764,-401.16,0.0002099,3]
[350554615,1737960643773,-2400.0,0.00021534,2]
[350554617,1737960643782,-1572.17044985,0.00022223,2]
[350554620,1737960643792,-151.0,0.0002229,7]
[350554621,1737960643801,-151.0,0.0002229,7]
[350554623,1737960643810,-172.45,0.00022327,3]
[350554625,1737960643818,-223.834064,0.00022347,7]
[350554627,1737960643828,-802.32,0.0002236,3]
[350554629,1737960643838,-4345.04,0.000224,2]
[350554631,1737960643847,-152.33,0.000224,31]
[350554633,1737960643855,-152.33,0.000224,31]
[350554635,1737960643865,-152.33,0.000224,31]
[350554638,1737960643875,-152.33,0.000224,31]
[350554640,1737960643885,-152.33,0.000224,31]
[350554642,1737960643894,-151.0,0.00022485,7]
[350554644,1737960643903,-151.0,0.00022485,7]
[350554646,1737960643912,-4842.65911563,0.00022487,2]
[350554647,1737960643922,-170.83409048,0.00022488,2]
[350554650,1737960643933,-6896.62172834,0.000225,3]
[350554652,1737960643942,-150.632301,0.000225,2]
[350554654,1737960643951,-150.09,0.00022526,14]
[350554656,1737960643961,-500.0,0.00022526,14]
[350554658,1737960643970,-500.0,0.00022526,14]
[350554660,1737960643981,-500.0,0.00022526,14]
[350554662,1737960643990,-500.0,0.00022526,14]
[350554664,1737960643999,-150.09,0.00022526,2]
[350554666,1737960644009,-168.9611059,0.00022526,14]
[350554668,1737960644019,-500.0,0.00022526,14]
[350554670,1737960644029,-150.40630393,0.00022526,14]
[350554672,1737960644038,-151.0,0.00022566,7]
[350554674,1737960644047,-151.0,0.00022566,7]
[350554676,1737960644056,-151.0,0.00022566,7]
[350554678,1737960644066,-151.0,0.00022566,7]
[350554680,1737960644076,-151.0,0.00022566,7]
[350554682,1737960644087,-151.0,0.00022566,7]
[350554684,1737960644097,-151.0,0.00022566,7]
[350554686,1737960644108,-151.0,0.00022566,7]
[350554688,1737960644118,-151.0,0.00022566,7]
[350554690,1737960644134,-151.0,0.00022566,7]
[350554692,1737960644145,-151.0,0.00022566,7]
[350554694,1737960644157,-151.0,0.00022566,7]
[350554696,1737960644171,-151.0,0.00022566,7]
[350554698,1737960644182,-151.0,0.00022566,7]
[350554699,1737960644193,-151.0,0.00022566,7]
[350554701,1737960644203,-151.0,0.00022566,7]
[350554704,1737960644214,-184.699613,0.00022566,7]
[350554705,1737960644224,-151.0,0.00022566,7]
[350554708,1737960644237,-151.0,0.00022566,7]
[350554710,1737960644248,-151.0,0.00022566,7]
[350554712,1737960644259,-151.0,0.00022566,7]
[350554714,1737960644271,-151.0,0.00022566,7]
[350554716,1737960644281,-152.013048,0.00022566,7]
[350554717,1737960644292,-151.0,0.00022566,7]
[350554719,1737960644302,-151.0,0.00022566,7]
[350554721,1737960644312,-151.0,0.00022566,7]
[350554723,1737960644323,-151.0,0.00022566,7]
[350554725,1737960644334,-151.0,0.00022566,7]
[350554727,1737960644345,-151.0,0.00022566,7]
[350554729,1737960644357,-151.0,0.00022566,7]
[350554731,1737960644367,-151.0,0.00022566,7]
[350554733,1737960644385,-151.0,0.00022566,7]
[350554735,1737960644397,-151.0,0.00022566,7]
[350554737,1737960644408,-201.840173,0.00022566,7]
[350554739,1737960644419,-151.0,0.00022566,7]
[350554741,1737960644429,-151.0,0.00022566,7]
[350554743,1737960644445,-151.0,0.00022571,7]
[350554745,1737960644456,-256.499968,0.00022571,7]
[350554747,1737960644467,-390.396434,0.00022571,7]
[350554749,1737960644477,-390.396434,0.00022571,7]
[350554752,1737960644489,-390.396434,0.00022571,7]
[350554754,1737960644500,-390.396434,0.00022571,7]
[350554755,1737960644511,-390.396434,0.00022571,7]
[350554757,1737960644521,-390.396434,0.00022571,7]
[350554759,1737960644532,-390.396434,0.00022571,7]
[350554761,1737960644542,-390.396434,0.00022571,7]
[350554763,1737960644553,-390.396434,0.00022571,7]
[350554765,1737960644563,-390.396434,0.00022571,7]
[350554767,1737960644573,-390.396434,0.00022571,7]
[350554769,1737960644583,-390.396434,0.00022571,7]
[350554771,1737960644592,-390.396434,0.00022571,7]
[350554773,1737960644602,-390.396434,0.00022571,7]
[350554775,1737960644612,-390.396434,0.00022571,7]
[350554777,1737960644621,-390.396434,0.00022571,7]
[350554779,1737960644635,-390.396434,0.00022571,7]
[350554781,1737960644644,-390.396434,0.00022571,7]
[350554783,1737960644653,-390.396434,0.00022571,7]
[350554785,1737960644663,-390.396424,0.00022571,7]
[350554787,1737960644673,-151.0,0.00022571,7]
[350554789,1737960644682,-151.0,0.00022571,7]
[350554791,1737960644692,-151.0,0.00022571,7]
[350554793,1737960644700,-151.0,0.00022571,7]
[350554795,1737960644710,-151.0,0.00022571,7]
[350554797,1737960644719,-151.0,0.00022571,7]
[350554799,1737960644729,-151.0,0.00022571,7]
[350554800,1737960644738,-151.0,0.00022571,7]
[350554802,1737960644747,-151.0,0.00022571,7]
[350554804,1737960644757,-181.332684,0.00022571,7]
[350554806,1737960644766,-500.0,0.00022573,2]
[350554809,1737960644775,-500.0,0.00022573,2]
[350554811,1737960644785,-500.0,0.00022573,2]
[350554813,1737960644795,-4978.53471338,0.0002258,60]
[350554815,1737960644804,-151.0,0.00022582,7]
[350554817,1737960644814,-151.774346,0.00022582,7]
[350554819,1737960644823,-151.0,0.00022582,7]
[350554821,1737960644833,-151.0,0.00022582,7]
[350554823,1737960644842,-151.0,0.00022582,7]
[350554825,1737960644852,-151.0,0.00022582,7]
[350554827,1737960644861,-151.0,0.00022582,7]
[350554828,1737960644871,-295.247941,0.00022582,7]
[350554831,1737960644884,-151.0,0.00022582,7]
[350554832,1737960644894,-151.0,0.00022582,7]
[350554834,1737960644904,-151.0,0.00022582,7]
[350554837,1737960644914,-151.0,0.00022582,7]
[350554839,1737960644924,-151.0,0.00022582,7]
[350554841,1737960644934,-151.0,0.00022582,7]
[350554842,1737960644943,-151.0,0.00022582,7]
[350554844,1737960644953,-151.0,0.00022582,7]
[350554846,1737960644962,-151.0,0.00022582,7]
[350554848,1737960644971,-151.0,0.00022582,7]
[350554850,1737960644981,-151.0,0.00022582,7]
[350554852,1737960644990,-151.0,0.00022582,7]
[350554854,1737960644999,-151.0,0.00022582,7]
[350554856,1737960645008,-291.682046,0.00022582,7]
[350554858,1737960645018,-189.051764,0.00022582,7]
[350554860,1737960645028,-151.0,0.00022587,7]
[350554862,1737960645037,-152.09791,0.00022587,7]
[350554864,1737960645047,-153.192162,0.00022587,7]
[350554866,1737960645056,-808.820986,0.00022587,7]
[350554868,1737960645066,-808.820986,0.00022587,7]
[350554870,1737960645076,-808.820986,0.00022587,7]
[350554872,1737960645085,-808.820986,0.00022587,7]
[350554874,1737960645095,-808.820986,0.00022587,7]
[350554876,1737960645104,-808.820986,0.00022587,7]
[350554878,1737960645113,-808.820986,0.00022587,7]
[350554880,1737960645123,-808.820986,0.00022587,7]
[350554882,1737960645138,-808.820986,0.00022587,7]
[350554894,1737960645242,-808.820986,0.00022587,7]
[350554896,1737960645254,-808.820986,0.00022587,7]
[350554898,1737960645263,-808.820986,0.00022587,7]
[350554900,1737960645273,-808.820986,0.00022587,7]
[350554902,1737960645283,-808.820986,0.00022587,7]
[350554904,1737960645293,-808.820986,0.00022587,7]
[350554906,1737960645304,-808.820986,0.00022587,7]
[350554908,1737960645313,-808.820986,0.00022587,7]
[350554910,1737960645324,-808.820986,0.00022587,7]
[350554912,1737960645334,-808.820986,0.00022587,7]
[350554914,1737960645345,-808.820992,0.00022587,7]
[350554916,1737960645355,-151.0,0.00022587,7]
[350554918,1737960645365,-151.0,0.00022587,7]
[350554920,1737960645379,-151.0,0.00022587,7]
[350554922,1737960645390,-151.0,0.00022587,7]
[350554924,1737960645399,-151.0,0.00022587,7]
[350554926,1737960645409,-151.0,0.00022587,7]
[350554928,1737960645418,-151.0,0.00022587,7]
[350554930,1737960645428,-151.0,0.00022587,7]
[350554932,1737960645437,-151.0,0.00022587,7]
[350554934,1737960645447,-151.0,0.00022587,7]
[350554936,1737960645456,-151.0,0.00022587,7]
[350554938,1737960645465,-214.835716,0.00022587,7]
[350554940,1737960645476,-738.52747,0.00022587,7]
[350554942,1737960645486,-738.52747,0.00022587,7]
[350554944,1737960645497,-738.52747,0.00022587,7]
[350554946,1737960645507,-151.0,0.00022587,7]
[350554948,1737960645516,-738.52747,0.00022587,7]
[350554950,1737960645525,-151.0,0.00022587,7]
[350554952,1737960645535,-738.52747,0.00022587,7]
[350554954,1737960645545,-151.0,0.00022587,7]
[350554956,1737960645554,-738.52747,0.00022587,7]
[350554958,1737960645563,-151.0,0.00022587,7]
[350554960,1737960645573,-738.52747,0.00022587,7]
[350554962,1737960645583,-738.52747,0.00022587,7]
[350554964,1737960645592,-151.0,0.00022587,7]
[350554965,1737960645601,-151.0,0.00022587,7]
[350554966,1737960645611,-738.52747,0.00022587,7]
[350554967,1737960645620,-151.0,0.00022587,7]
[350554968,1737960645632,-738.52747,0.00022587,7]
[350554969,1737960645641,-151.0,0.00022587,7]
[350554970,1737960645650,-738.52747,0.00022587,7]
[350554971,1737960645659,-151.0,0.00022587,7]
[350554972,1737960645669,-738.52747,0.00022587,7]
[350554973,1737960645678,-151.0,0.00022587,7]
[350554974,1737960645688,-738.52747,0.00022587,7]
[350554975,1737960645697,-738.52747,0.00022587,7]
[350554976,1737960645706,-151.0,0.00022587,7]
[350554977,1737960645715,-738.52747,0.00022587,7]
[350554978,1737960645724,-151.0,0.00022587,7]
[350554979,1737960645734,-738.52747,0.00022587,7]
[350554980,1737960645743,-151.0,0.00022587,7]
[350554982,1737960645752,-738.52747,0.00022587,7]
[350554984,1737960645762,-151.0,0.00022587,7]
[350554986,1737960645772,-738.52747,0.00022587,7]
[350554987,1737960645781,-200.963586,0.00022587,7]
[350554989,1737960645790,-738.52747,0.00022587,7]
[350554991,1737960645800,-738.527471,0.00022587,7]
[350554995,1737960645809,-151.0,0.00022587,7]
[350554998,1737960645818,-151.0,0.00022587,7]
[350555001,1737960645827,-151.0,0.00022587,7]
[350555004,1737960645837,-151.0,0.00022587,7]
[350555006,1737960645846,-151.0,0.00022587,7]
[350555008,1737960645855,-151.0,0.00022587,7]
[350555010,1737960645865,-151.0,0.00022587,7]
[350555012,1737960645874,-151.0,0.00022587,7]
[350555014,1737960645885,-151.0,0.00022587,7]
[350555017,1737960645894,-151.0,0.00022587,7]
[350555019,1737960645904,-151.0,0.00022587,7]
[350555021,1737960645913,-151.0,0.00022587,7]
[350555023,1737960645923,-151.0,0.00022587,7]
[350555025,1737960645932,-176.605461,0.00022587,7]
[350555027,1737960645941,-153.030043,0.00022587,7]
[350555030,1737960645950,-151.0,0.00022587,7]
[350555032,1737960645960,-151.0,0.00022587,7]
[350555034,1737960645969,-151.0,0.00022587,7]
[350555035,1737960645978,-151.0,0.00022587,7]
[350555037,1737960645987,-151.0,0.00022587,7]
[350555040,1737960645996,-151.0,0.00022587,7]
[350555042,1737960646006,-151.0,0.00022587,7]
[350555044,1737960646016,-151.0,0.00022587,7]
[350555046,1737960646025,-151.0,0.00022587,7]
[350555048,1737960646035,-151.0,0.00022587,7]
[350555050,1737960646045,-151.0,0.00022587,7]
[350555052,1737960646054,-151.0,0.00022587,7]
[350555054,1737960646063,-151.0,0.00022587,7]
[350555056,1737960646072,-151.0,0.00022587,7]
[350555058,1737960646081,-232.208992,0.00022587,7]
[350555060,1737960646090,-1023.577951,0.00022587,7]
[350555062,1737960646099,-1023.577951,0.00022587,7]
[350555064,1737960646109,-1023.577951,0.00022587,7]
[350555066,1737960646118,-1023.577951,0.00022587,7]
[350555068,1737960646130,-1023.577951,0.00022587,7]
[350555070,1737960646140,-274.50158317,0.00022587,7]
[350555078,1737960646211,-749.07636783,0.00022587,7]
[350555080,1737960646221,-98.80149503,0.00022587,7]
[350555082,1737960646235,-924.77645597,0.00022587,7]
[350555084,1737960646246,-1023.577951,0.00022587,7]
[350555086,1737960646256,-348.44559303,0.00022587,7]
[350555089,1737960646268,-675.13235797,0.00022587,7]
[350555091,1737960646277,-1023.577951,0.00022587,7]
[350555093,1737960646287,-1023.577951,0.00022587,7]
[350555095,1737960646296,-205.093828,0.00022587,7]
[350555097,1737960646305,-205.093828,0.00022587,7]
[350555099,1737960646314,-205.093828,0.00022587,7]
[350555101,1737960646324,-1023.577951,0.00022587,7]
[350555103,1737960646334,-1023.577951,0.00022587,7]
[350555105,1737960646343,-1023.577951,0.00022587,7]
[350555106,1737960646352,-205.093828,0.00022587,7]
[350555108,1737960646362,-1023.577951,0.00022587,7]
[350555110,1737960646372,-205.093828,0.00022587,7]
[350555112,1737960646386,-1023.577951,0.00022587,7]
[350555114,1737960646395,-205.093828,0.00022587,7]
[350555116,1737960646405,-1023.577951,0.00022587,7]
[350555118,1737960646414,-205.093828,0.00022587,7]
[350555120,1737960646423,-1023.577951,0.00022587,7]
[350555122,1737960646433,-205.093828,0.00022587,7]
[350555124,1737960646442,-1023.577951,0.00022587,7]
[350555126,1737960646451,-1023.57795,0.00022587,7]
[350555128,1737960646460,-205.093828,0.00022587,7]
[350555130,1737960646470,-205.093828,0.00022587,7]
[350555132,1737960646480,-205.093828,0.00022587,7]
[350555134,1737960646489,-205.093828,0.00022587,7]
[350555136,1737960646498,-205.093828,0.00022587,7]
[350555138,1737960646507,-205.093828,0.00022587,7]
[350555140,1737960646516,-205.093828,0.00022587,7]
[350555142,1737960646525,-205.093828,0.00022587,7]
[350555144,1737960646535,-205.093828,0.00022587,7]
[350555146,1737960646544,-205.093828,0.00022587,7]
[350555148,1737960646553,-205.093828,0.00022587,7]
[350555150,1737960646562,-205.09383,0.00022587,7]
[350555152,1737960646571,-151.0,0.00022587,7]
[350555154,1737960646580,-151.0,0.00022587,7]
[350555156,1737960646589,-151.0,0.00022587,7]
[350555158,1737960646598,-151.0,0.00022587,7]
[350555160,1737960646607,-151.0,0.00022587,7]
[350555162,1737960646616,-151.0,0.00022587,7]
[350555164,1737960646628,-151.0,0.00022587,7]
[350555166,1737960646637,-151.0,0.00022587,7]
[350555168,1737960646646,-151.0,0.00022587,7]
[350555169,1737960646655,-151.0,0.00022587,7]
[350555171,1737960646665,-298.488398,0.00022587,7]
[350555173,1737960646674,-622.918212,0.00022587,7]
[350555175,1737960646683,-622.918212,0.00022587,7]
[350555177,1737960646692,-622.918212,0.00022587,7]
[350555179,1737960646701,-622.918212,0.00022587,7]
[350555181,1737960646710,-622.918212,0.00022587,7]
[350555183,1737960646719,-622.918212,0.00022587,7]
[350555185,1737960646729,-622.918212,0.00022587,7]
[350555187,1737960646738,-622.918212,0.00022587,7]
[350555189,1737960646747,-622.918212,0.00022587,7]
[350555191,1737960646756,-622.918212,0.00022587,7]
[350555193,1737960646765,-622.918212,0.00022587,7]
[350555195,1737960646774,-622.918212,0.00022587,7]
[350555197,1737960646783,-622.918212,0.00022587,7]
[350555199,1737960646792,-622.918212,0.00022587,7]
[350555201,1737960646801,-622.918212,0.00022587,7]
[350555203,1737960646810,-622.918212,0.00022587,7]
[350555205,1737960646819,-622.918212,0.00022587,7]
[350555207,1737960646828,-622.918212,0.00022587,7]
[350555209,1737960646837,-622.918212,0.00022587,7]
[350555211,1737960646847,-622.918215,0.00022587,7]
[350555213,1737960646856,-190.803302,0.00022587,7]
[350555215,1737960646865,-15091.51875718,0.00022587,5]
[350555217,1737960646874,-1377.45911071,0.00022587,5]
[350555219,1737960646886,-215778.93590643,0.00022588,61]
[350555221,1737960646898,-11247.64015099,0.00022588,61]
[350555223,1737960646909,-2875.0,0.00022588,61]
[350555226,1737960646919,-33372.00000705,0.00022588,61]
[350555238,1737960647024,-500.0,0.0001841,2]
[350555240,1737960647034,-699.0,0.00022566,3]
[350555242,1737960647042,-151.0,0.00022587,7]
[350555244,1737960647051,-3614.7518774,0.00022588,61]
[350555246,1737960647062,-69165.81414473,0.00022588,61]
[350555248,1737960647073,-704.7635792,0.00022588,61]
[350555250,1737960647083,-9901.5280242,0.00022588,61]
[350555253,1737960647094,-25143.99718,0.00022588,61]
[350555255,1737960647105,-20632.80002558,0.00022588,61]
[350555277,1737960647313,-5686.57952261,0.00022588,61]
[350555611,1737960757395,233.122321,0.00013699,2]
[350555612,1737960775534,150.0,0.00015,2]
[350555613,1737960847404,1651.80116488,0.00023,120]
[350555615,1737961132080,223.628794,0.00013973,2]
[350555624,1737961355701,1484.42,0.00010959,2]
[350555625,1737961366212,1237.01,0.00010959,2]
[350555626,1737961376725,1030.85,0.00010959,2]
[350555627,1737961387240,859.04,0.00010959,2]
[350555628,1737961397944,715.86,0.00010959,2]
[350555629,1737961408562,596.55,0.00010959,2]
[350555630,1737961419070,497.13,0.00010959,2]
[350555631,1737961429641,414.27,0.00010959,2]
[350555632,1737961440170,345.23,0.00010959,2]
[350555634,1737961450693,287.69,0.00010959,2]
[350555643,1737961461189,239.74,0.00010959,2]
[350555644,1737961471689,199.79,0.00010959,2]
[350555645,1737961482152,166.49,0.00010959,2]
[350555646,1737961492648,832.46,0.00010959,2]
[350555654,1737961626110,-778.68092989,0.00016704,2]
[350555655,1737961632094,-164.09960737,0.00016704,2]
[350555656,1737961634082,-540.3224408,0.00016704,2]
[350555657,1737961640095,-85.31417744,0.00016704,2]
[350555658,1737961640118,-284.875978,0.00016873,2]
[350555659,1737961640140,-300.0,0.00017104,2]
[350555660,1737961640162,-8537.2214688,0.00017105,2]
[350555661,1737961640185,-260.574837,0.00017194,2]
[350555662,1737961640205,-1144.401261,0.00017389,2]
[350555663,1737961640230,-262.962442,0.0001741,2]
[350555664,1737961640251,-249.61106255,0.000179,7]
[350555665,1737961640282,-50.38893745,0.000179,7]
[350555666,1737961640304,-154.22161289,0.00018308,2]
[350555667,1737961640326,-172.80445974,0.00018309,2]
[350555668,1737961640350,-301.00065971,0.00018407,2]
[350555673,1737961749162,-154.22161289,0.00018308,2]
[350555674,1737961749185,-500.0,0.00018406,2]
[350555675,1737961749208,-500.0,0.00018407,2]
[350555676,1737961749232,-682.53,0.00018407,2]
[350555677,1737961749254,-500.0,0.00018407,2]
[350555678,1737961749278,-500.0,0.00018407,2]
[350555679,1737961749301,-839.18,0.00018407,2]
[350555680,1737961749324,-500.0,0.00018407,2]
[350555681,1737961749345,-500.0,0.00018407,2]
[350555682,1737961749368,-500.0,0.00018407,2]
[350555683,1737961749394,-500.0,0.00018407,2]
[350555684,1737961749424,-500.0,0.00018407,2]
[350555685,1737961749451,-500.0,0.00018407,2]
[350555686,1737961749478,-500.0,0.00018407,2]
[350555687,1737961749508,-500.0,0.00018407,2]
[350555688,1737961749539,-964.81,0.00018407,2]
[350555689,1737961749567,-218.53261366,0.00018407,2]
[350555690,1737961749596,-951.38,0.00018407,2]
[350555691,1737961749623,-500.0,0.00018407,2]
[350555692,1737961749648,-500.0,0.00018407,2]
[350555693,1737961749675,-500.0,0.00018407,2]
[350555694,1737961749705,-500.0,0.00018407,2]
[350555695,1737961749730,-500.0,0.00018407,2]
[350555696,1737961749754,-500.0,0.00018407,2]
[350555697,1737961749782,-500.0,0.00018407,2]
[350555698,1737961749811,-1819.31,0.00018407,2]
[350555699,1737961749839,-639.81,0.00018407,2]
[350555700,1737961749870,-3367.01,0.00018407,2]
[350555701,1737961749901,-500.0,0.00018407,2]
[350555702,1737961749926,-500.0,0.00018407,2]
[350555703,1737961749951,-909.07,0.00018407,2]
[350555704,1737961749976,-500.0,0.00018407,2]
[350555705,1737961750004,-500.0,0.00018407,2]
[350555706,1737961750031,-500.0,0.00018407,2]
[350555707,1737961750056,-500.0,0.00018407,2]
[350555708,1737961750082,-500.0,0.00018407,2]
[350555709,1737961750107,-500.0,0.00018407,2]
[350555710,1737961750132,-517.54206974,0.00018407,2]
[350555711,1737961750157,-500.0,0.00018407,2]
[350555712,1737961750184,-500.0,0.00018407,2]
[350555713,1737961750212,-500.0,0.00018407,2]
[350555714,1737961750240,-500.0,0.00018407,2]
[350555715,1737961750268,-500.0,0.00018407,2]
[350555716,1737961750294,-675.2,0.00018407,2]
[350555717,1737961750320,-1042.44,0.00018407,2]
[350555718,1737961750345,-500.0,0.00018407,2]
[350555719,1737961750372,-3477.11,0.00018407,2]
[350555720,1737961750397,-500.0,0.00018407,2]
[350555721,1737961750423,-1292.67437846,0.00018407,2]
[350555722,1737961750449,-500.0,0.00018408,2]
[350555723,1737961750476,-964.81,0.00018408,2]
[350555724,1737961750505,-500.0,0.00018408,2]
[350555725,1737961750532,-246.28373392,0.00018408,2]
[350555726,1737961750557,-500.0,0.00018408,2]
[350555727,1737961750583,-500.0,0.00018408,2]
[350555728,1737961750609,-500.0,0.00018408,2]
[350555729,1737961750637,-500.0,0.00018408,2]
[350555730,1737961750663,-500.0,0.00018408,2]
[350555731,1737961750690,-500.0,0.00018408,2]
[350555732,1737961750717,-371.35574694,0.00018408,2]